[Event "Mistrovství Čech mládeže 2023 - HD16"]
[Site "Harrachov, Czech Republic"]
[Date "2023.10.23"]
[Round "3.12"]
[White "Meca, Viktor"]
[Black "Mikhno, Artem"]
[Result "0-1"]
[TimeControl "90m + 30s"]
[WhiteElo "1559"]
[BlackElo "1781"]

1. e4 {[%clk 01:30:55]} {[%emt 00:00:03]} c6 {[%clk 01:30:32]} {[%emt
00:00:29]} 2. d4 {[%clk 01:30:48]} {[%emt 00:00:36]} d5 {[%clk 01:30:21]}
{[%emt 00:00:43]} 3. Nc3 {[%clk 01:30:57]} {[%emt 00:00:20]} dxe4 {[%clk
01:30:27]} {[%emt 00:00:26]} 4. Nxe4 {[%clk 01:31:11]} {[%emt 00:00:15]} Bf5
{[%clk 01:30:19]} {[%emt 00:00:39]} 5. Ng3 {[%clk 01:31:18]} {[%emt 00:00:20]}
Bg6 {[%clk 01:29:47]} {[%emt 00:01:04]} 6. Nh3 {[%clk 01:31:10]} {[%emt
00:00:37]} e6 {[%clk 01:26:25]} {[%emt 00:03:54]} 7. Nf4 {[%clk 01:27:52]}
{[%emt 00:03:46]} Nd7 {[%clk 01:23:04]} {[%emt 00:03:53]} 8. h4 {[%clk
01:20:22]} {[%emt 00:07:57]} Ne7 {[%clk 01:19:00]} {[%emt 00:04:37]} 9. h5
{[%clk 01:08:44]} {[%emt 00:12:08]} Bf5 {[%clk 01:18:35]} {[%emt 00:00:55]} 10.
Nxf5 {[%clk 01:07:12]} {[%emt 00:02:01]} Nxf5 {[%clk 01:18:49]} {[%emt
00:00:17]} 11. g4 {[%clk 01:04:38]} {[%emt 00:03:01]} Ne7 {[%clk 01:16:05]}
{[%emt 00:03:16]} 12. h6 {[%clk 00:55:44]} {[%emt 00:09:24]} e5 {[%clk
01:14:39]} {[%emt 00:01:56]} 13. hxg7 {[%clk 00:49:08]} {[%emt 00:07:05]} Bxg7
{[%clk 01:13:57]} {[%emt 00:01:13]} 14. Nh5 {[%clk 00:49:18]} {[%emt 00:00:17]}
Rg8 {[%clk 01:11:38]} {[%emt 00:02:53]} 15. Bd3 {[%clk 00:45:57]} {[%emt
00:03:48]} Nf6 {[%clk 01:00:09]} {[%emt 00:12:02]} 16. Nxg7+ {[%clk 00:27:12]}
{[%emt 00:19:15]} Rxg7 {[%clk 01:00:32]} {[%emt 00:00:06]} 17. g5 {[%clk
00:27:18]} {[%emt 00:00:23]} Qd5 {[%clk 01:00:11]} {[%emt 00:00:52]} 18. f3
{[%clk 00:20:42]} {[%emt 00:07:05]} Nd7 {[%clk 00:59:39]} {[%emt 00:01:03]} 19.
Be4 {[%clk 00:20:06]} {[%emt 00:01:06]} Qxd4 {[%clk 00:59:31]} {[%emt
00:00:38]} 20. Qxd4 {[%clk 00:20:23]} {[%emt 00:00:12]} exd4 {[%clk 00:59:47]}
{[%emt 00:00:15]} 21. Rxh7 {[%clk 00:20:11]} {[%emt 00:00:42]} Rxh7 {[%clk
01:00:04]} {[%emt 00:00:13]} 22. Bxh7 {[%clk 00:20:26]} {[%emt 00:00:14]} Ng6
{[%clk 01:00:27]} {[%emt 00:00:07]} 23. Bd2 {[%clk 00:09:58]} {[%emt 00:10:58]}
Ndf8 {[%clk 01:00:44]} {[%emt 00:00:14]} 24. Bxg6 {[%clk 00:09:26]} {[%emt
00:01:01]} fxg6 {[%clk 01:01:05]} {[%emt 00:00:09]} 25. Kf2 {[%clk 00:07:59]}
{[%emt 00:01:57]} c5 {[%clk 01:00:57]} {[%emt 00:00:38]} 26. Rh1 {[%clk
00:06:14]} {[%emt 00:02:14]} Kf7 {[%clk 01:01:16]} {[%emt 00:00:12]} 27. Rh4
{[%clk 00:05:46]} {[%emt 00:00:58]} Re8 {[%clk 01:01:23]} {[%emt 00:00:24]} 28.
f4 {[%clk 00:02:45]} {[%emt 00:03:30]} Re7 {[%clk 00:59:30]} {[%emt 00:02:24]}
29. Kf3 {[%clk 00:02:16]} {[%emt 00:00:59]} Ke6 {[%clk 00:59:13]} {[%emt
00:00:47]} 30. f5+ {[%clk 00:01:50]} {[%emt 00:00:57]} gxf5 {[%clk 00:58:46]}
{[%emt 00:00:56]} 31. Rh6+ {[%clk 00:01:58]} {[%emt 00:00:21]} Kf7 {[%clk
00:56:48]} {[%emt 00:02:28]} 32. Rf6+ {[%clk 00:01:33]} {[%emt 00:00:56]} Kg7
{[%clk 00:57:01]} {[%emt 00:00:17]} 33. Rxf5 {[%clk 00:01:19]} {[%emt
00:00:43]} b6 {[%clk 00:55:52]} {[%emt 00:01:39]} 34. Bf4 {[%clk 00:01:05]}
{[%emt 00:00:43]} Ng6 {[%clk 00:56:12]} {[%emt 00:00:11]} 35. Kg4 {[%clk
00:00:41]} {[%emt 00:00:54]} Re4 {[%clk 00:56:05]} {[%emt 00:00:37]} 36. Kf3
{[%clk 00:00:51]} {[%emt 00:00:20]} Re7 {[%clk 00:49:42]} {[%emt 00:06:53]} 37.
Bg3 {[%clk 00:00:47]} {[%emt 00:00:34]} Re3+ {[%clk 00:46:24]} {[%emt
00:03:48]} 38. Kf2 {[%clk 00:01:05]} {[%emt 00:00:10]} Ne7 {[%clk 00:46:32]}
{[%emt 00:00:23]} 39. Rf6 {[%clk 00:01:03]} {[%emt 00:00:28]} c4 {[%clk
00:45:39]} {[%emt 00:00:57]} 40. Bf4 {[%clk 00:00:51]} {[%emt 00:00:42]} Nd5
{[%clk 00:37:16]} {[%emt 00:09:23]} 0-1

[Event "Mistrovství Čech mládeže 2023 - HD16"]
[Site "Harrachov, Czech Republic"]
[Date "2023.10.23"]
[Round "3.13"]
[White "Jun, Robert"]
[Black "Tegda, Vojtěch"]
[Result "0-1"]
[TimeControl "90m + 30s"]
[WhiteElo "1554"]
[BlackElo "1731"]

1. e4 {[%clk 01:30:57]} {[%emt 00:00:02]} e5 {[%clk 01:30:53]} {[%emt
00:00:08]} 2. Nf3 {[%clk 01:30:55]} {[%emt 00:00:31]} Nc6 {[%clk 01:31:18]}
{[%emt 00:00:06]} 3. Bb5 {[%clk 01:28:50]} {[%emt 00:02:35]} g6 {[%clk
01:31:42]} {[%emt 00:00:06]} 4. c3 {[%clk 01:28:50]} {[%emt 00:00:30]} Bg7
{[%clk 01:31:59]} {[%emt 00:00:13]} 5. d4 {[%clk 01:29:11]} {[%emt 00:00:10]}
Nf6 {[%clk 01:31:26]} {[%emt 00:01:04]} 6. Bg5 {[%clk 01:27:44]} {[%emt
00:01:57]} h6 {[%clk 01:25:35]} {[%emt 00:06:20]} 7. Bxf6 {[%clk 01:25:55]}
{[%emt 00:02:18]} Qxf6 {[%clk 01:25:46]} {[%emt 00:00:19]} 8. d5 {[%clk
01:25:51]} {[%emt 00:00:34]} Ne7 {[%clk 01:24:06]} {[%emt 00:02:11]} 9. O-O
{[%clk 01:26:11]} {[%emt 00:00:09]} Qb6 {[%clk 01:23:54]} {[%emt 00:00:42]} 10.
Qe2 {[%clk 01:26:23]} {[%emt 00:00:18]} c6 {[%clk 01:23:22]} {[%emt 00:01:02]}
11. Bc4 {[%clk 01:24:26]} {[%emt 00:02:27]} cxd5 {[%clk 01:23:12]} {[%emt
00:00:40]} 12. exd5 {[%clk 01:24:43]} {[%emt 00:00:13]} d6 {[%clk 01:23:28]}
{[%emt 00:00:15]} 13. Bb5+ {[%clk 01:24:57]} {[%emt 00:00:15]} Bd7 {[%clk
01:23:35]} {[%emt 00:00:22]} 14. Bxd7+ {[%clk 01:25:21]} {[%emt 00:00:07]} Kxd7
{[%clk 01:24:01]} {[%emt 00:00:05]} 15. c4 {[%clk 01:25:32]} {[%emt 00:00:19]}
e4 {[%clk 01:23:44]} {[%emt 00:00:46]} 16. Qxe4 {[%clk 01:23:57]} {[%emt
00:02:05]} Bxb2 {[%clk 01:23:35]} {[%emt 00:00:39]} 17. Nbd2 {[%clk 01:24:21]}
{[%emt 00:00:06]} Bxa1 {[%clk 01:23:34]} {[%emt 00:00:32]} 18. Rxa1 {[%clk
01:24:45]} {[%emt 00:00:06]} Rae8 {[%clk 01:10:58]} {[%emt 00:13:05]} 19. Rb1
{[%clk 01:24:34]} {[%emt 00:00:41]} Qc7 {[%clk 01:10:47]} {[%emt 00:00:41]} 20.
c5 {[%clk 01:17:57]} {[%emt 00:07:08]} Kc8 {[%clk 01:02:26]} {[%emt 00:08:51]}
21. cxd6 {[%clk 01:17:11]} {[%emt 00:01:16]} Qxd6 {[%clk 01:02:45]} {[%emt
00:00:11]} 22. Nc4 {[%clk 01:15:14]} {[%emt 00:02:26]} Qa6 {[%clk 00:33:08]}
{[%emt 00:30:08]} 23. d6 {[%clk 01:12:43]} {[%emt 00:03:01]} Nf5 {[%clk
00:32:10]} {[%emt 00:01:28]} 24. d7+ {[%clk 01:12:51]} {[%emt 00:00:23]} Kxd7
{[%clk 00:31:21]} {[%emt 00:01:19]} 25. Rxb7+ {[%clk 01:11:22]} {[%emt
00:01:59]} Kc8 {[%clk 00:31:24]} {[%emt 00:00:26]} 26. Rxa7 {[%clk 00:52:52]}
{[%emt 00:19:00]} Rxe4 {[%clk 00:26:12]} {[%emt 00:05:42]} 27. Rxa6 {[%clk
00:53:13]} {[%emt 00:00:09]} Rxc4 {[%clk 00:26:23]} {[%emt 00:00:19]} 28. g3
{[%clk 00:53:24]} {[%emt 00:00:19]} Kb7 {[%clk 00:26:43]} {[%emt 00:00:09]} 29.
Rf6 {[%clk 00:53:03]} {[%emt 00:00:52]} Rf8 {[%clk 00:24:03]} {[%emt 00:03:10]}
30. Ne5 {[%clk 00:53:16]} {[%emt 00:00:17]} Rc7 {[%clk 00:23:09]} {[%emt
00:01:24]} 31. Nxg6 {[%clk 00:53:23]} {[%emt 00:00:22]} Rg8 {[%clk 00:23:01]}
{[%emt 00:00:38]} 32. Ne5 {[%clk 00:53:35]} {[%emt 00:00:18]} Nh4 {[%clk
00:15:20]} {[%emt 00:08:12]} 33. Rxh6 {[%clk 00:53:39]} {[%emt 00:00:27]} Rc1#
{[%clk 00:14:58]} 0-1

[Event "Mistrovství Čech mládeže 2023 - HD16"]
[Site "Harrachov, Czech Republic"]
[Date "2023.10.23"]
[Round "3.14"]
[White "Sochor, Antonín"]
[Black "Fořt, Hugo"]
[Result "1-0"]
[TimeControl "90m + 30s"]
[WhiteElo "1702"]
[BlackElo "1462"]

1. d4 {[%clk 01:30:55]} {[%emt 00:00:04]} d5 {[%clk 01:30:52]} {[%emt
00:00:08]} 2. Bf4 {[%clk 01:31:14]} {[%emt 00:00:11]} Nf6 {[%clk 01:31:09]}
{[%emt 00:00:14]} 3. e3 {[%clk 01:31:29]} {[%emt 00:00:14]} Bf5 {[%clk
01:31:16]} {[%emt 00:00:22]} 4. Bd3 {[%clk 01:31:49]} {[%emt 00:00:12]} Bxd3
{[%clk 01:31:01]} {[%emt 00:00:44]} 5. Qxd3 {[%clk 01:31:55]} {[%emt 00:00:24]}
c6 {[%clk 01:30:31]} {[%emt 00:01:00]} 6. Nd2 {[%clk 01:32:06]} {[%emt
00:00:19]} e6 {[%clk 01:30:14]} {[%emt 00:00:48]} 7. Ngf3 {[%clk 01:32:15]}
{[%emt 00:00:20]} Bd6 {[%clk 01:29:51]} {[%emt 00:00:53]} 8. Bxd6 {[%clk
01:32:25]} {[%emt 00:00:19]} Qxd6 {[%clk 01:30:18]} {[%emt 00:00:03]} 9. Ne5
{[%clk 01:32:30]} {[%emt 00:00:19]} Nbd7 {[%clk 01:29:57]} {[%emt 00:00:57]} 10.
f4 {[%clk 01:32:10]} {[%emt 00:00:52]} Qc7 {[%clk 01:26:15]} {[%emt 00:04:11]}
11. O-O {[%clk 01:31:17]} {[%emt 00:01:23]} g6 {[%clk 01:19:39]} {[%emt
00:07:07]} 12. h3 {[%clk 01:30:20]} {[%emt 00:01:27]} Qb6 {[%clk 01:18:45]}
{[%emt 00:01:22]} 13. b4 {[%clk 01:29:26]} {[%emt 00:01:26]} Nxe5 {[%clk
01:12:56]} {[%emt 00:06:19]} 14. fxe5 {[%clk 01:29:31]} {[%emt 00:00:25]} Nd7
{[%clk 01:12:29]} {[%emt 00:00:57]} 15. c3 {[%clk 01:29:36]} {[%emt 00:00:22]}
Ke7 {[%clk 01:10:53]} {[%emt 00:02:09]} 16. Rf2 {[%clk 01:29:16]} {[%emt
00:00:49]} Rag8 {[%clk 01:10:09]} {[%emt 00:01:14]} 17. Raf1 {[%clk 01:29:13]}
{[%emt 00:00:32]} Rg7 {[%clk 01:10:33]} {[%emt 00:00:08]} 18. g4 {[%clk
01:29:05]} {[%emt 00:00:37]} g5 {[%clk 01:09:44]} {[%emt 00:01:19]} 19. e4
{[%clk 01:28:16]} {[%emt 00:01:18]} h5 {[%emt 00:02:05]} 20. Qf3 {[%clk
01:27:48]} {[%emt 00:00:21]} Ke8 {[%clk 01:05:35]} {[%emt 00:03:42]} 21. Rg2
{[%emt 00:01:58]} hxg4 {[%emt 00:01:37]} 22. Qxg4 {[%emt 00:01:33]} Nxe5 {[%clk
01:03:25]} {[%emt 00:00:11]} 23. Qg3 {[%clk 01:25:49]} {[%emt 00:01:19]} Nd7
{[%clk 01:03:45]} {[%emt 00:00:12]} 24. Nb3 {[%clk 01:22:26]} {[%emt 00:03:53]}
Qd8 {[%clk 01:01:49]} {[%emt 00:02:26]} 25. Nc5 {[%clk 01:20:46]} {[%emt
00:02:10]} Nxc5 {[%clk 01:01:38]} {[%emt 00:00:41]} 26. bxc5 {[%clk 01:20:19]}
dxe4 {[%clk 00:59:20]} 27. Qe5 {[%clk 01:20:19]} Rgh7 {[%clk 00:59:20]} {[%emt
00:01:54]} 28. Rgf2 {[%clk 01:16:41]} Rxh3 {[%clk 00:56:12]} {[%emt 00:07:45]}
29. Rxf7 {[%clk 01:13:14]} Rh1+ {[%clk 00:56:12]} 30. Kg2 {[%clk 01:13:14]}
R1h6 {[%clk 00:56:12]} 31. R1f6 {[%emt 00:10:59]} Rxf6 {[%clk 00:53:14]} {[%emt
00:00:14]} 32. Rxf6 {[%clk 01:11:04]} Rh7 {[%clk 00:53:14]} 33. Qxe6+ {[%clk
01:11:04]} Qe7 {[%clk 00:51:15]} {[%emt 00:04:41]} 34. Qc8+ {[%clk 01:11:00]}
Qd8 {[%clk 00:51:37]} {[%emt 00:00:22]} 35. Rf8+ {[%clk 01:11:20]} 1-0

[Event "Mistrovství Čech mládeže 2023 - HD16"]
[Site "Harrachov, Czech Republic"]
[Date "2023.10.23"]
[Round "3.15"]
[White "Langmaier, Michal"]
[Black "Mauder, Karel"]
[Result "1/2-1/2"]
[TimeControl "90m + 30s"]
[WhiteElo "1697"]
[BlackElo "1423"]

1. d4 {[%clk 01:30:51]} {[%emt 00:00:08]} Nf6 {[%clk 01:30:54]} {[%emt
00:00:06]} 2. c4 {[%clk 01:31:16]} {[%emt 00:00:05]} e6 {[%clk 01:31:12]}
{[%emt 00:00:12]} 3. Nf3 {[%clk 01:31:40]} {[%emt 00:00:05]} b6 {[%clk
01:30:47]} {[%emt 00:00:55]} 4. g3 {[%clk 01:31:09]} {[%emt 00:01:01]} Bb4+
{[%clk 01:29:51]} {[%emt 00:01:25]} 5. Bd2 {[%clk 01:31:29]} {[%emt 00:00:11]}
Bxd2+ {[%clk 01:30:04]} {[%emt 00:00:17]} 6. Qxd2 {[%clk 01:31:12]} {[%emt
00:00:47]} O-O {[%clk 01:30:13]} {[%emt 00:00:20]} 7. Bg2 {[%clk 01:31:28]}
{[%emt 00:00:15]} d5 {[%clk 01:30:02]} {[%emt 00:00:41]} 8. Nc3 {[%clk
01:30:45]} {[%emt 00:01:13]} Bb7 {[%clk 01:29:35]} {[%emt 00:00:58]} 9. cxd5
{[%clk 01:28:23]} {[%emt 00:02:52]} Nxd5 {[%clk 01:28:35]} {[%emt 00:01:29]} 10.
O-O {[%clk 01:28:14]} {[%emt 00:00:39]} Na6 {[%clk 01:27:36]} {[%emt 00:01:30]}
11. Rfe1 {[%clk 01:22:08]} {[%emt 00:06:36]} c5 {[%clk 01:25:24]} {[%emt
00:02:43]} 12. Nxd5 {[%clk 01:07:21]} {[%emt 00:15:17]} Bxd5 {[%clk 01:24:07]}
{[%emt 00:01:46]} 13. e4 {[%clk 01:05:44]} {[%emt 00:02:06]} Bb7 {[%clk
01:24:00]} {[%emt 00:00:38]} 14. Rad1 {[%clk 01:04:41]} {[%emt 00:01:32]} cxd4
{[%clk 01:22:13]} {[%emt 00:02:16]} 15. Nxd4 {[%clk 01:03:21]} {[%emt
00:01:52]} e5 {[%emt 00:03:24]} 16. Nf5 {[%emt 00:03:14]} Qxd2 {[%clk
01:13:40]} {[%emt 00:02:55]} 17. Rxd2 {[%clk 01:03:51]} {[%emt 00:00:30]} Rfd8
{[%clk 01:08:50]} {[%emt 00:05:19]} 18. Red1 {[%clk 01:02:25]} {[%emt
00:01:56]} Rxd2 {[%clk 01:06:25]} {[%emt 00:02:54]} 19. Rxd2 {[%clk 01:01:56]}
{[%emt 00:01:00]} Nc5 {[%clk 01:05:26]} {[%emt 00:01:30]} 20. f3 {[%clk
00:59:28]} {[%emt 00:02:58]} Kf8 {[%clk 01:01:12]} {[%emt 00:04:43]} 21. Kf2
{[%clk 00:58:25]} {[%emt 00:01:33]} g6 {[%clk 00:55:44]} {[%emt 00:05:58]} 22.
Ne3 {[%clk 00:55:22]} {[%emt 00:03:32]} Ke7 {[%clk 00:46:38]} {[%emt 00:09:36]}
23. Nc4 {[%clk 00:50:42]} {[%emt 00:05:11]} f6 {[%clk 00:45:20]} {[%emt
00:01:48]} 24. Ke3 {[%clk 00:38:47]} {[%emt 00:12:24]} Rd8 {[%clk 00:44:09]}
{[%emt 00:01:41]} 25. Rxd8 {[%clk 00:35:50]} {[%emt 00:03:28]} Kxd8 {[%clk
00:43:55]} {[%emt 00:00:43]} 1/2-1/2

[Event "Mistrovství Čech mládeže 2023 - HD16"]
[Site "Harrachov, Czech Republic"]
[Date "2023.10.23"]
[Round "3.16"]
[White "Kohm, Patrik"]
[Black "Tichý, Tomáš"]
[Result "1-0"]
[TimeControl "90m + 30s"]
[WhiteElo "1475"]
[BlackElo "1697"]

1. e4 {[%clk 01:30:56]} {[%emt 00:00:03]} c5 {[%clk 01:30:56]} {[%emt
00:00:05]} 2. Nc3 {[%clk 01:31:20]} {[%emt 00:00:06]} Nc6 {[%clk 01:30:25]}
{[%emt 00:01:01]} 3. Bb5 {[%clk 01:31:29]} {[%emt 00:00:20]} g6 {[%clk
01:29:48]} {[%emt 00:01:07]} 4. Nf3 {[%clk 01:31:16]} {[%emt 00:00:42]} Bg7
{[%clk 01:29:21]} {[%emt 00:00:59]} 5. O-O {[%clk 01:31:21]} {[%emt 00:00:24]}
e6 {[%clk 01:26:17]} {[%emt 00:03:35]} 6. Bxc6 {[%clk 01:29:43]} {[%emt
00:02:06]} dxc6 {[%clk 01:25:44]} {[%emt 00:01:04]} 7. b3 {[%clk 01:27:03]}
{[%emt 00:03:10]} Bxc3 {[%clk 01:08:57]} {[%emt 00:17:17]} 8. dxc3 {[%clk
01:27:22]} {[%emt 00:00:10]} Qxd1 {[%clk 01:09:05]} {[%emt 00:00:24]} 9. Rxd1
{[%clk 01:27:44]} {[%emt 00:00:07]} Ne7 {[%clk 00:49:54]} {[%emt 00:19:41]} 10.
Bg5 {[%clk 01:25:45]} {[%emt 00:02:29]} f5 {[%clk 00:45:27]} {[%emt 00:04:58]}
11. Nd2 {[%clk 01:19:58]} {[%emt 00:06:16]} b5 {[%clk 00:37:33]} {[%emt
00:08:24]} 12. Be3 {[%clk 01:17:44]} {[%emt 00:02:44]} O-O {[%clk 00:28:21]}
{[%emt 00:09:43]} 13. Bxc5 {[%clk 01:16:15]} {[%emt 00:01:59]} Re8 {[%clk
00:28:39]} {[%emt 00:00:12]} 14. exf5 {[%clk 01:15:14]} {[%emt 00:01:31]} gxf5
{[%clk 00:27:35]} {[%emt 00:01:34]} 15. Nf3 {[%clk 01:14:26]} {[%emt 00:01:17]}
Nd5 {[%clk 00:26:00]} {[%emt 00:02:06]} 16. Bd4 {[%clk 01:13:36]} {[%emt
00:01:20]} Bb7 {[%clk 00:24:16]} {[%emt 00:02:15]} 17. Ne5 {[%clk 01:12:50]}
{[%emt 00:01:15]} Rac8 {[%clk 00:20:53]} {[%emt 00:03:53]} 18. Rd3 {[%clk
01:10:59]} {[%emt 00:02:20]} f4 {[%clk 00:14:36]} {[%emt 00:06:47]} 19. Bc5
{[%clk 01:11:11]} {[%emt 00:00:17]} Nf6 {[%clk 00:09:34]} {[%emt 00:05:33]} 20.
Re1 {[%clk 01:10:49]} {[%emt 00:00:51]} Rcd8 {[%clk 00:09:19]} {[%emt
00:00:47]} 21. Rxd8 {[%clk 01:10:49]} {[%emt 00:00:29]} Rxd8 {[%clk 00:09:48]}
{[%emt 00:00:02]} 22. Nd3 {[%clk 01:11:04]} {[%emt 00:00:14]} Nd7 {[%clk
00:07:45]} {[%emt 00:02:34]} 23. h3 {[%clk 01:10:26]} {[%emt 00:01:08]} Bc8
{[%clk 00:07:02]} {[%emt 00:01:13]} 24. Bxa7 {[%clk 01:09:40]} {[%emt
00:01:15]} Nf6 {[%clk 00:06:24]} {[%emt 00:01:08]} 25. Nxf4 {[%clk 01:08:48]}
{[%emt 00:01:22]} Rd2 {[%clk 00:06:32]} {[%emt 00:00:22]} 26. Bd4 {[%clk
01:08:02]} {[%emt 00:01:16]} Kf7 {[%clk 00:06:19]} {[%emt 00:00:43]} 27. Rc1
{[%clk 01:06:30]} {[%emt 00:02:02]} Ne4 {[%clk 00:04:21]} {[%emt 00:02:28]} 28.
Nd3 {[%clk 01:06:14]} {[%emt 00:00:45]} b4 {[%clk 00:02:07]} {[%emt 00:02:46]}
29. cxb4 {[%clk 01:06:09]} {[%emt 00:00:35]} Ba6 {[%clk 00:02:03]} {[%emt
00:00:34]} 30. Be3 {[%clk 01:05:15]} {[%emt 00:01:22]} Re2 {[%clk 00:02:15]}
{[%emt 00:00:19]} 31. Nf4 {[%clk 01:05:11]} {[%emt 00:00:33]} Ng3 {[%clk
00:01:00]} {[%emt 00:01:46]} 32. Nxe2 {[%clk 01:05:20]} {[%emt 00:00:21]} Nxe2+
{[%clk 00:01:21]} {[%emt 00:00:08]} 33. Kh2 {[%clk 01:05:41]} {[%emt 00:00:09]}
Nxc1 {[%clk 00:01:47]} {[%emt 00:00:05]} 34. Bxc1 {[%clk 01:05:37]} {[%emt
00:00:34]} Kf6 {[%clk 00:01:54]} {[%emt 00:00:23]} 35. Kg3 {[%clk 01:05:52]}
{[%emt 00:00:14]} Ke5 {[%clk 00:02:10]} {[%emt 00:00:15]} 36. Kf3 {[%clk
01:05:59]} {[%emt 00:00:22]} Kf5 {[%clk 00:01:38]} {[%emt 00:01:02]} 37. g4+
{[%clk 01:06:20]} {[%emt 00:00:09]} Kg6 {[%clk 00:01:54]} {[%emt 00:00:15]} 38.
Ke4 {[%clk 01:06:40]} {[%emt 00:00:09]} Bf1 {[%clk 00:02:10]} {[%emt 00:00:14]}
39. h4 {[%clk 01:06:56]} {[%emt 00:00:13]} Bh3 {[%clk 00:02:17]} {[%emt
00:00:24]} 40. h5+ {[%clk 01:07:15]} {[%emt 00:00:11]} Kf7 {[%clk 00:02:34]}
{[%emt 00:00:13]} 41. f3 {[%clk 01:07:32]} {[%emt 00:00:14]} Bf1 {[%clk
00:02:54]} {[%emt 00:00:10]} 42. c4 {[%clk 01:07:50]} {[%emt 00:00:12]} Be2
{[%clk 00:03:17]} {[%emt 00:00:07]} 43. a4 {[%clk 01:08:11]} {[%emt 00:00:09]}
Bd1 {[%clk 00:03:03]} {[%emt 00:00:44]} 44. b5 {[%clk 01:08:27]} {[%emt
00:00:13]} cxb5 {[%clk 00:03:02]} {[%emt 00:00:32]} 45. axb5 {[%clk 01:08:50]}
{[%emt 00:00:07]} Bxb3 {[%clk 00:03:16]} {[%emt 00:00:15]} 46. c5 {[%clk
01:09:12]} {[%emt 00:00:08]} Bc4 {[%clk 00:03:32]} {[%emt 00:00:15]} 47. b6
{[%clk 01:09:28]} {[%emt 00:00:14]} Bd5+ {[%clk 00:03:52]} {[%emt 00:00:10]} 48.
Ke5 {[%clk 01:09:35]} {[%emt 00:00:23]} Ke7 {[%clk 00:03:56]} {[%emt 00:00:27]}
49. f4 {[%clk 01:09:50]} {[%emt 00:00:13]} Bf3 {[%clk 00:04:11]} {[%emt
00:00:16]} 50. f5 {[%clk 01:10:14]} {[%emt 00:00:06]} exf5 {[%clk 00:04:23]}
{[%emt 00:00:18]} 51. gxf5 {[%clk 01:10:38]} {[%emt 00:00:05]} Bb7 {[%clk
00:04:26]} {[%emt 00:00:27]} 52. f6+ {[%clk 01:10:44]} {[%emt 00:00:24]} Kd7
{[%clk 00:04:31]} {[%emt 00:00:25]} 53. f7 {[%clk 01:10:54]} {[%emt 00:00:20]}
Ke7 {[%clk 00:04:54]} {[%emt 00:00:08]} 54. Bg5+ {[%clk 01:11:09]} {[%emt
00:00:14]} Kxf7 {[%clk 00:05:09]} {[%emt 00:00:15]} 55. Kd6 {[%clk 01:11:33]}
{[%emt 00:00:06]} 1-0